bitfinex-derivatives/quotes_SOLF0:USTF0_20220106
["timestamp","ask_amount","ask_price","bid_price","bid_amount"]
[1641435192114,2.3865531,151.81,151.76,27.66479]
[1641435192514,2.3865531,151.81,151.75,13.97984085]
[1641435192914,37.11425342,151.85,151.75,13.97984085]
[1641435193115,2.3865531,151.78,151.75,13.97984085]
[1641435193315,31.66479,151.84,151.75,13.97984085]
[1641435193716,2.3865531,151.79,151.75,13.97984085]
[1641435193917,49.27599127,151.83,151.73,22.05659268]
[1641435194116,2.3865531,151.78,151.73,22.05659268]
[1641435194315,64.0046,151.82,151.73,22.05659268]
[1641435194516,2.3865531,151.78,151.73,20.44314578]
[1641435195717,4.0,151.8,151.73,20.44314578]
[1641435195917,2.3865531,151.74,151.73,20.44314578]
[1641435197216,2.3865531,151.74,151.73,13.97984085]
[1641435197416,2.3865531,151.74,151.68,13.97984085]
[1641435197617,27.66479,151.77,151.68,3.31054085]
[1641435197816,27.66479,151.77,151.6,55.70550241]
[1641435197817,2.3865531,151.69,151.6,55.70550241]
[1641435198018,2.3865531,151.66,151.6,55.70550241]
[1641435198216,6.58783227,151.74,151.6,55.70550241]
[1641435198217,4.0,151.71,151.6,55.70550241]
[1641435198417,2.3865531,151.65,151.6,55.70550241]
[1641435198617,2.3865531,151.64,151.6,55.70550241]
[1641435199116,4.0,151.7,151.6,55.70550241]
[1641435199117,27.66479,151.67,151.6,55.70550241]
[1641435199317,2.3865531,151.63,151.58,44.88842262]
[1641435199717,27.66479,151.67,151.58,44.88842262]
[1641435199917,2.3865531,151.63,151.58,44.88842262]
[1641435200119,2.3865531,151.64,151.58,44.88842262]
[1641435200320,27.66479,151.67,151.58,44.88842262]
[1641435200523,2.3865531,151.65,151.6,20.0]
[1641435200719,27.66479,151.67,151.59,6.46128143]
[1641435200720,2.3865531,151.66,151.59,6.46128143]
[1641435200920,2.3865531,151.65,151.59,6.46128143]
[1641435201120,27.66479,151.67,151.59,6.46128143]
[1641435201121,2.3865531,151.66,151.59,6.46128143]
[1641435201322,2.3865531,151.64,151.59,6.46128143]
[1641435201520,27.66479,151.67,151.59,6.46128143]
[1641435201723,2.3865531,151.66,151.61,21.6134469]
[1641435202221,27.66479,151.69,151.62,1.6134469]
[1641435202621,65.0736,151.71,151.62,1.6134469]
[1641435202821,2.3865531,151.67,151.62,1.6134469]
[1641435203221,2.3865531,151.67,151.64,27.66479]
[1641435204522,2.3865531,151.67,151.65,6.46128143]
[1641435204924,2.3865531,151.66,151.65,6.46128143]
[1641435206625,2.3865531,151.66,151.62,10.76235119]
[1641435206826,2.3865531,151.66,151.59,6.46128143]
[1641435207026,4.0,151.69,151.59,6.46128143]
[1641435207226,2.3865531,151.63,151.59,6.46128143]
[1641435210636,27.66479,151.67,151.59,6.46128143]
[1641435210933,2.3865531,151.66,151.59,6.46128143]
[1641435211335,30.0513431,151.67,151.59,6.46128143]
[1641435211533,65.0736,151.71,151.59,6.46128143]
[1641435211734,2.3865531,151.68,151.59,6.46128143]
[1641435212137,65.0736,151.71,151.6,1.6134469]
[1641435212335,2.3865531,151.68,151.6,1.6134469]
[1641435212534,2.3865531,151.68,151.64,20.0]
[1641435212935,27.66479,151.73,151.64,20.0]
[1641435212936,2.3865531,151.7,151.64,20.0]
[1641435213139,2.3865531,151.7,151.65,29.2782369]
[1641435214237,64.77904342,151.75,151.65,29.2782369]
[1641435214440,4.65703127,151.7,151.69,4.65703127]
[1641435214736,2.3865531,151.72,151.69,4.65703127]
[1641435214737,105.03935342,151.77,151.69,26.27047817]
[1641435214938,37.11425342,151.77,151.7,1.6134469]
[1641435215139,37.11425342,151.77,151.74,27.66479]
[1641435215738,37.11425342,151.77,151.75,21.6134469]
[1641435215940,37.11425342,151.77,151.74,27.66479]
[1641435216239,2.3865531,151.79,151.74,27.66479]
[1641435216440,12.15911518,151.82,151.74,27.66479]
[1641435216638,2.3865531,151.8,151.74,27.66479]
[1641435216838,2.3865531,151.79,151.72,20.0]
[1641435217040,2.3865531,151.78,151.71,34.24655194]
[1641435217239,2.3865531,151.76,151.71,34.24655194]
[1641435218243,27.66479,151.79,151.71,34.24655194]
[1641435218542,12.15911518,151.82,151.71,34.24655194]
[1641435218842,2.3865531,151.76,151.71,34.24655194]
[1641435219242,27.66479,151.8,151.72,6.46170692]
[1641435219743,2.3865531,151.77,151.72,26.46170692]
[1641435220342,27.66479,151.8,151.72,26.46170692]
[1641435220542,2.3865531,151.76,151.72,26.46170692]
[1641435222245,2.3865531,151.75,151.72,6.46170692]
[1641435222444,2.3865531,151.73,151.7,6.46170692]
[1641435222644,2.3865531,151.71,151.7,6.46170692]
[1641435223645,2.3865531,151.71,151.69,6.46170692]
[1641435223847,6.3865531,151.7,151.69,6.46170692]
[1641435224146,2.3865531,151.7,151.63,27.66479]
[1641435224346,2.3865531,151.65,151.63,27.66479]
[1641435224545,4.0,151.7,151.62,55.70550241]
[1641435224748,4.0,151.7,151.62,10.76293943]
[1641435224947,2.3865531,151.65,151.62,10.76293943]
[1641435225150,66.9855,151.72,151.62,10.76293943]
[1641435225348,27.66479,151.69,151.62,10.76293943]
[1641435225648,2.3865531,151.67,151.62,10.76293943]
[1641435226047,62.9855,151.72,151.62,10.76293943]
[1641435226247,62.9855,151.72,151.64,21.6134469]
[1641435226448,2.3865531,151.71,151.67,20.0]
[1641435226648,37.11425342,151.75,151.67,20.0]
[1641435226849,37.11425342,151.75,151.64,20.0]
[1641435227049,2.3865531,151.7,151.68,1.25843161]
[1641435227250,4.0,151.74,151.68,1.25843161]
[1641435227450,2.3865531,151.69,151.68,1.25843161]
[1641435228849,2.3865531,151.69,151.67,13.97032708]
[1641435229048,2.3865531,151.68,151.67,13.97032708]
[1641435229449,34.0513431,151.68,151.67,13.97032708]
[1641435229650,34.0513431,151.68,151.62,13.97032708]
[1641435229651,37.45128317,151.68,151.62,13.97032708]
[1641435229852,35.06473007,151.68,151.62,13.97032708]
[1641435230451,2.3865531,151.63,151.62,13.97032708]
[1641435230650,2.3865531,151.63,151.6,13.97032708]
[1641435230851,2.3865531,151.61,151.6,13.97032708]
[1641435231051,2.3865531,151.62,151.6,13.97032708]
[1641435231455,2.3865531,151.61,151.6,13.97032708]
[1641435231853,2.3865531,151.64,151.6,13.97032708]
[1641435232455,27.66479,151.68,151.6,13.97032708]
[1641435232653,27.66479,151.68,151.61,13.97032708]
[1641435232852,2.3865531,151.64,151.61,13.97032708]
[1641435233252,31.66479,151.68,151.61,13.97032708]
[1641435233653,27.66479,151.68,151.62,13.97032708]
[1641435233854,2.3865531,151.63,151.62,13.97032708]
[1641435234655,2.3865531,151.63,151.6,13.97032708]
[1641435234956,4.0,151.65,151.6,13.97032708]
[1641435235156,2.3865531,151.61,151.6,13.97032708]
[1641435235356,2.3865531,151.61,151.59,13.97032708]
[1641435235655,4.0,151.67,151.59,13.97032708]
[1641435236457,3.40049726,151.66,151.6,13.97032708]
[1641435236657,2.3865531,151.61,151.6,13.97032708]
[1641435237560,2.3865531,151.61,151.58,13.97032708]
[1641435238258,2.3865531,151.59,151.58,13.97032708]
[1641435238458,2.3865531,151.6,151.58,13.97032708]
[1641435238658,27.66479,151.63,151.58,13.97032708]
[1641435238859,2.3865531,151.61,151.58,13.97032708]
[1641435239261,2.3865531,151.6,151.58,13.97032708]
[1641435239861,2.3865531,151.6,151.59,13.97032708]
[1641435240765,2.3865531,151.6,151.58,13.97032708]
[1641435241764,2.3865531,151.6,151.55,1.25843161]
[1641435242164,2.3865531,151.59,151.55,1.25843161]
[1641435243065,4.0,151.64,151.55,1.25843161]
[1641435243267,2.3865531,151.56,151.55,1.25843161]
[1641435244667,2.3865531,151.56,151.51,1.25843161]
[1641435245968,2.3865531,151.56,151.55,13.98229465]
[1641435247871,6.3865531,151.56,151.51,1.25843161]
[1641435248069,6.3865531,151.52,151.51,1.25843161]
[1641435248270,8.3255531,151.52,151.51,1.25843161]
[1641435248670,8.3255531,151.52,151.45,1.25843161]
[1641435248869,2.3865531,151.48,151.45,1.25843161]
[1641435250374,2.3865531,151.47,151.45,1.25843161]
[1641435250573,2.3865531,151.46,151.45,1.25843161]
[1641435251573,30.0513431,151.46,151.45,3.161e-05]
[1641435253375,30.0513431,151.46,151.37,62.30224362]
[1641435253376,30.0513431,151.46,151.39,17.22449327]
[1641435253674,2.3865531,151.45,151.39,17.22449327]
[1641435254075,2.3865531,151.45,151.37,23.82123448]
[1641435254277,2.3865531,151.45,151.38,1.6134469]
[1641435254675,2.3865531,151.45,151.37,23.82123448]
[1641435254875,2.3865531,151.45,151.37,81.14018379]
[1641435255076,2.3865531,151.43,151.37,79.52673689]
[1641435255476,31.66479,151.5,151.37,79.52673689]
[1641435255678,2.3865531,151.44,151.37,79.52673689]
[1641435255877,2.3865531,151.43,151.37,79.52673689]
[1641435256077,4.0,151.49,151.37,79.52673689]
[1641435256476,2.3865531,151.43,151.37,79.52673689]
[1641435256878,55.32958,151.5,151.37,79.52673689]
[1641435256879,2.3865531,151.4,151.37,79.52673689]
[1641435257278,59.32958,151.5,151.37,79.52673689]
[1641435257479,4.0,151.49,151.37,79.52673689]
[1641435257679,4.0,151.49,151.39,27.66479]
[1641435257880,4.0,151.49,151.39,83.37029241]
[1641435258079,4.0,151.48,151.39,83.37029241]
[1641435258782,59.32958,151.5,151.4,6.46134773]
[1641435259480,4.0,151.49,151.4,6.46134773]
[1641435259880,59.32958,151.5,151.4,6.46134773]
[1641435260080,4.0,151.49,151.4,6.46134773]
[1641435260280,4.0,151.47,151.4,6.46134773]
[1641435260482,4.0,151.48,151.4,6.46134773]
[1641435260680,4.0,151.49,151.4,6.46134773]
[1641435261180,4.0,151.48,151.39,83.37029241]
[1641435261381,4.0,151.48,151.39,27.66479]
[1641435261681,4.0,151.49,151.39,27.66479]
[1641435262083,59.32958,151.5,151.4,6.45923921]
[1641435262282,4.0,151.49,151.4,6.45923921]
[1641435262482,59.32958,151.5,151.4,6.45923921]
[1641435262783,4.0,151.49,151.4,6.45923921]
[1641435262984,59.32958,151.5,151.4,62.16474162]
[1641435263283,4.0,151.49,151.4,62.16474162]
[1641435263683,55.32958,151.5,151.4,62.16474162]
[1641435264085,55.32958,151.5,151.41,62.3005034]
[1641435264887,66.6317,151.53,151.43,4.0]
[1641435265086,4.0,151.56,151.44,6.59369643]
[1641435265287,4.0,151.57,151.44,6.59369643]
[1641435265689,27.66479,151.56,151.47,27.66479]
[1641435265889,27.66479,151.56,151.47,33.80979]
[1641435266489,27.66479,151.56,151.48,6.45923921]
[1641435270394,4.0,151.53,151.48,6.45923921]
[1641435270594,4.0,151.51,151.48,6.45923921]
[1641435270795,4.0,151.5,151.48,3.921e-05]
[1641435271195,6.283,151.51,151.48,3.921e-05]
[1641435271394,4.0,151.5,151.48,3.921e-05]
[1641435271797,27.66479,151.49,151.43,55.70550241]
[1641435271997,27.66479,151.49,151.39,67.5162]
[1641435272997,27.66479,151.49,151.4,10.76454625]
[1641435275598,31.66479,151.49,151.4,10.76454625]
[1641435275998,27.66479,151.46,151.4,10.76454625]
[1641435278505,27.66479,151.46,151.44,13.97567352]
[1641435280514,32.32828996,151.49,151.44,13.97567352]
[1641435280714,4.66349996,151.49,151.44,13.97567352]
[1641435281315,4.66349996,151.49,151.41,20.0]
[1641435281316,4.66349996,151.5,151.45,13.97567352]
[1641435281918,27.66479,151.49,151.45,13.97567352]
[1641435282117,27.66479,151.49,151.4,38.42933625]
[1641435282118,27.66479,151.49,151.47,13.97567352]
[1641435283019,27.66479,151.49,151.4,10.76454625]
[1641435283221,33.95879,151.49,151.48,4.65826942]
[1641435284221,38.62228996,151.49,151.47,4.65826942]
[1641435286020,27.66479,151.48,151.47,4.65826942]
[1641435286622,32.32828996,151.48,151.47,4.65826942]
[1641435287722,27.66479,151.48,151.4,10.76454625]
[1641435288924,24.89831101,151.48,151.4,10.76454625]
[1641435290025,24.89831101,151.48,151.47,4.65863537]
[1641435290927,24.89831101,151.48,151.4,10.76454625]
[1641435291728,24.89831101,151.48,151.4,18.47533187]
[1641435292129,27.66479,151.45,151.4,18.47533187]
[1641435292528,31.66479,151.45,151.4,18.47533187]
[1641435292729,4.0,151.44,151.4,18.47533187]
[1641435292928,4.0,151.42,151.4,18.47533187]
[1641435293127,68.69273537,151.48,151.4,18.47533187]
[1641435293128,4.0,151.44,151.4,18.47533187]
[1641435293328,4.0,151.43,151.4,18.47533187]
[1641435293528,75.29208863,151.48,151.36,55.70550241]
[1641435293729,4.0,151.41,151.36,55.70550241]
[1641435294128,27.66479,151.37,151.36,55.70550241]
[1641435294329,27.66479,151.37,151.32,93.03788542]
[1641435294330,27.66479,151.37,151.32,55.70550241]
[1641435294530,4.0,151.36,151.32,55.70550241]
[1641435294728,27.66479,151.37,151.32,55.70550241]
[1641435295529,31.66479,151.37,151.32,55.70550241]
[1641435295731,31.66479,151.37,151.3,3.73300292]
[1641435296030,4.0,151.36,151.28,27.66479]
[1641435296230,27.66479,151.37,151.28,27.66479]
[1641435296231,4.0,151.35,151.28,27.66479]
[1641435296430,27.66479,151.37,151.28,27.66479]
[1641435296631,4.0,151.31,151.28,27.66479]
[1641435296832,27.66479,151.37,151.28,27.66479]
[1641435296833,4.0,151.32,151.28,27.66479]
[1641435297532,4.0,151.33,151.28,27.66479]
[1641435297933,4.65863537,151.35,151.28,27.66479]
[1641435298134,4.65863537,151.35,151.26,27.66479]
[1641435298135,27.66479,151.33,151.26,27.66479]
[1641435298537,4.65863537,151.32,151.26,27.66479]
[1641435299639,27.66479,151.33,151.26,27.66479]
[1641435300036,4.0,151.31,151.26,27.66479]
[1641435300236,4.0,151.32,151.26,27.66479]
[1641435300435,27.66479,151.33,151.26,27.66479]
[1641435300636,4.65863537,151.35,151.26,27.66479]
[1641435300637,4.65863537,151.35,151.27,4.0]
[1641435300836,37.11425342,151.4,151.3,6.59978881]
[1641435301046,37.11425342,151.4,151.3,10.59978881]
[1641435301637,37.11425342,151.4,151.3,6.59978881]
[1641435301838,4.0,151.41,151.3,6.59978881]
[1641435302239,27.66479,151.41,151.31,27.66479]
[1641435303538,31.66479,151.41,151.31,27.66479]
[1641435304338,59.32958,151.41,151.3,55.70550241]
[1641435304539,55.32958,151.41,151.3,55.70550241]
[1641435305338,55.32958,151.41,151.29,6.60022441]
[1641435305339,55.32958,151.41,151.31,4.0]
[1641435305638,55.32958,151.41,151.29,26.60022441]
[1641435305639,55.32958,151.41,151.32,4.0]
[1641435305838,6.60022441,151.46,151.35,4.0]
[1641435306239,27.66479,151.45,151.35,27.66479]
[1641435309142,4.0,151.44,151.35,27.66479]
[1641435309342,4.0,151.44,151.34,10.75960789]
[1641435309945,4.0,151.44,151.33,27.66479]
[1641435310344,27.66479,151.42,151.33,27.66479]
[1641435311845,27.66479,151.42,151.34,4.0]
[1641435312046,27.66479,151.42,151.33,31.66479]
[1641435312345,64.77904342,151.45,151.34,6.59804698]
[1641435312547,64.77904342,151.45,151.35,4.0]
[1641435312846,27.66479,151.45,151.35,4.0]
[1641435313448,27.66479,151.45,151.38,13.99839459]
[1641435317655,27.66479,151.45,151.39,13.99839459]
[1641435318053,4.0,151.44,151.39,13.99839459]
[1641435318253,27.66479,151.45,151.39,13.99839459]
[1641435318654,27.66479,151.45,151.38,13.99839459]
[1641435320257,27.66479,151.45,151.37,20.45176645]
[1641435321157,27.66479,151.45,151.39,13.99839459]
[1641435321557,37.11425342,151.5,151.41,4.0]
[1641435321758,37.11425342,151.5,151.44,4.0]
[1641435322058,37.11425342,151.5,151.45,6.59326169]
[1641435322256,5.342e-05,151.5,151.45,10.59326169]
[1641435322460,5.342e-05,151.5,151.46,27.66479]
[1641435323259,83.37029241,151.55,151.46,27.66479]
[1641435323459,27.66479,151.55,151.47,20.45176645]
[1641435324159,31.66479,151.55,151.47,20.45176645]
[1641435324359,4.0,151.53,151.47,20.45176645]
[1641435324658,4.0,151.53,151.46,41.66318459]
[1641435324860,16.20042039,151.54,151.46,41.66318459]
[1641435325060,12.20042039,151.54,151.46,41.66318459]
[1641435325260,16.20042039,151.54,151.46,41.66318459]
[1641435325461,4.0,151.53,151.46,41.66318459]
[1641435325660,12.20042039,151.54,151.46,27.66479]
[1641435326664,4.0,151.52,151.46,27.66479]
[1641435326863,12.20042039,151.54,151.44,13.99839459]
[1641435327063,4.0,151.5,151.44,13.99839459]
[1641435327263,12.20042039,151.54,151.44,13.99839459]
[1641435327463,4.0,151.5,151.43,27.66479]
[1641435327663,4.0,151.5,151.42,13.99839459]
[1641435328465,4.0,151.51,151.4,20.45779721]
[1641435328664,27.66479,151.49,151.4,20.45779721]
[1641435329266,27.66479,151.49,151.41,4.0]
[1641435329567,12.20042039,151.48,151.4,31.05301568]
[1641435329766,12.20042039,151.48,151.41,4.0]
[1641435330268,27.66479,151.49,151.4,27.05301568]
[1641435330568,27.66479,151.49,151.42,13.99839459]
[1641435331166,27.66479,151.49,151.4,20.45779721]
[1641435331368,12.20091614,151.48,151.4,24.45779721]
[1641435331767,12.20091614,151.48,151.4,31.05301568]
[1641435332168,27.66479,151.49,151.44,13.99839459]
[1641435333670,27.66479,151.49,151.44,15.25452487]
[1641435333871,27.66479,151.55,151.44,21.71392749]
[1641435334671,15.60594949,151.54,151.44,21.71392749]
[1641435334872,15.60594949,151.54,151.44,25.71392749]
[1641435335475,15.60594949,151.54,151.44,21.71392749]
[1641435335677,15.60594949,151.54,151.45,15.25452487]
[1641435336779,15.60594949,151.54,151.44,1.25613028]
[1641435336981,15.60594949,151.54,151.44,5.25613028]
[1641435337179,15.60594949,151.54,151.44,1.25613028]
[1641435337379,15.60594949,151.54,151.44,11.84982671]
[1641435337580,15.60594949,151.54,151.46,13.99839459]
[1641435339587,15.60594949,151.54,151.45,4.0]
[1641435339987,19.60594949,151.54,151.44,21.71379286]
[1641435340286,15.60594949,151.54,151.44,15.25452487]
[1641435340487,4.0,151.53,151.46,1.25613028]
[1641435340890,27.66479,151.52,151.46,1.25613028]
[1641435341088,31.66479,151.52,151.46,1.25613028]
[1641435341491,35.07290603,151.52,151.44,1.25613028]
[1641435341690,4.0,151.51,151.44,1.25613028]
[1641435341990,35.07290603,151.52,151.44,1.25613028]
[1641435342393,3.40811603,151.5,151.44,1.25613028]
[1641435342592,3.40811603,151.5,151.4,1.25613028]
[1641435342793,3.40811603,151.5,151.4,5.25613028]
[1641435342992,3.40811603,151.5,151.42,27.66479]
[1641435343792,52.92524455,151.51,151.42,27.66479]
[1641435344692,15.60594949,151.51,151.43,1.25613028]
[1641435345093,4.0,151.5,151.43,1.25613028]
[1641435346396,3.40811603,151.49,151.4,1.25613028]
[1641435346596,40.72741109,151.49,151.4,1.25613028]
[1641435346995,27.66479,151.47,151.4,1.25613028]
[1641435347696,27.66479,151.47,151.38,41.66318459]
[1641435348600,15.60594949,151.46,151.39,1.25613028]
[1641435350100,15.60594949,151.46,151.38,27.66479]
[1641435350801,19.60594949,151.46,151.37,13.99839459]
[1641435351002,19.60594949,151.46,151.39,1.2558238]
[1641435351203,27.66479,151.44,151.39,1.2558238]
[1641435351702,27.66479,151.44,151.37,13.99839459]
[1641435351903,15.60594949,151.43,151.36,1.25567555]
[1641435353002,3.40811603,151.43,151.35,41.66318459]
[1641435353302,4.0,151.42,151.36,20.45799622]
[1641435353502,4.0,151.41,151.36,20.45799622]
[1641435353702,4.0,151.4,151.36,20.45799622]
[1641435353903,4.0,151.39,151.36,20.45799622]
[1641435354103,4.0,151.39,151.33,13.99839459]
[1641435355105,27.66479,151.35,151.33,13.99839459]
[1641435355505,27.66479,151.35,151.31,13.99839459]
[1641435356604,27.66479,151.35,151.27,18.48374432]
[1641435356605,94.79819,151.37,151.32,13.99839459]
[1641435356805,24.89831101,151.37,151.32,13.99839459]
[1641435358107,24.89831101,151.37,151.34,13.99839459]
[1641435358909,24.89831101,151.37,151.33,13.99839459]
[1641435359709,24.89831101,151.37,151.32,13.99839459]
[1641435361107,24.89831101,151.37,151.29,7.71515893]
[1641435361108,24.89831101,151.37,151.33,13.99839459]
[1641435362110,4.6680137,151.35,151.34,4.6680137]
[1641435363110,3.41276211,151.36,151.32,4.66869768]
[1641435364210,15.62547021,151.36,151.29,1.2555573]
[1641435365313,27.66479,151.34,151.29,1.2555573]
[1641435365516,4.0,151.32,151.29,5.73e-05]
[1641435365712,4.0,151.32,151.22,63.1137]
[1641435365713,6.60654709,151.31,151.19,55.70550241]
[1641435365912,4.0,151.3,151.19,55.70550241]
[1641435366112,10.60654709,151.31,151.19,55.70550241]
[1641435366314,4.0,151.3,151.17,66.04938805]
[1641435366517,10.60654709,151.31,151.17,66.04938805]
[1641435366713,6.60654709,151.31,151.17,66.04938805]
[1641435366913,10.60654709,151.31,151.17,66.04938805]
[1641435367114,4.0,151.3,151.17,66.04938805]
[1641435367316,4.0,151.23,151.17,3.73608805]
[1641435367518,27.66479,151.26,151.18,17.22443402]
[1641435368019,27.66479,151.26,151.18,21.22443402]
[1641435368220,27.66479,151.28,151.18,21.22443402]
[1641435368618,27.66479,151.28,151.18,17.22443402]
[1641435369020,27.66479,151.28,151.17,63.7645]
[1641435369419,4.0,151.25,151.2,27.66479]
[1641435369619,4.0,151.27,151.16,6.45715464]
[1641435369919,4.0,151.27,151.15,27.66479]
[1641435369920,31.66479,151.28,151.18,6.45715464]
[1641435370119,4.0,151.27,151.18,6.45715464]
[1641435370321,4.0,151.27,151.18,17.22443402]
[1641435370722,4.0,151.25,151.18,17.22443402]
[1641435371323,27.66479,151.22,151.18,10.76727938]
[1641435371524,27.66479,151.22,151.16,6.45715464]
[1641435379028,31.66479,151.22,151.16,6.45715464]
[1641435379227,27.66479,151.22,151.16,6.45715464]
[1641435379529,55.32958,151.22,151.16,6.45715464]
[1641435379728,59.32958,151.22,151.16,6.45715464]
[1641435379928,59.32958,151.22,151.14,6.45715464]
[1641435381631,27.66479,151.19,151.14,6.45715464]
[1641435382231,4.0,151.18,151.14,6.45715464]
[1641435382432,31.66479,151.19,151.14,6.45715464]
[1641435382732,27.66479,151.19,151.13,6.45715464]
[1641435383036,27.66479,151.22,151.13,6.45715464]
[1641435383233,63.7316,151.24,151.13,10.45715464]
[1641435383435,37.31929506,151.26,151.13,10.45715464]
[1641435383636,27.66479,151.24,151.15,27.66479]
[1641435384038,4.0,151.23,151.15,27.66479]
[1641435384439,27.66479,151.24,151.15,27.66479]
[1641435384640,4.0,151.23,151.15,27.66479]
[1641435384938,4.0,151.23,151.16,6.45715464]
[1641435385438,4.0,151.22,151.16,6.45715464]
[1641435385638,27.66479,151.21,151.16,6.45715464]
[1641435385838,27.66479,151.21,151.13,6.45715464]
[1641435386338,31.66479,151.21,151.13,6.45715464]
[1641435386539,4.0,151.19,151.13,6.45715464]
[1641435386740,27.66479,151.21,151.13,6.45715464]
[1641435387438,4.0,151.2,151.13,6.45715464]
[1641435387639,27.66479,151.15,151.11,6.45715464]
[1641435388840,27.66479,151.15,151.09,17.2250573]
[1641435390540,27.66479,151.15,151.09,10.76790266]
[1641435390740,27.66479,151.15,151.08,17.2250573]
[1641435391341,27.66479,151.21,151.08,17.2250573]
[1641435391541,27.66479,151.18,151.08,17.2250573]
[1641435392141,27.66479,151.18,151.08,6.45715464]
[1641435392842,27.66479,151.18,151.09,55.70550241]
[1641435393441,31.66479,151.18,151.09,55.70550241]
[1641435393642,27.66479,151.18,151.08,62.16265705]
[1641435395545,27.66479,151.21,151.11,27.66479]
[1641435396745,27.66479,151.21,151.18,14.01673672]
[1641435397548,27.66479,151.21,151.16,14.01673672]
[1641435398447,27.66479,151.21,151.15,14.01673672]
[1641435399447,27.66479,151.21,151.13,6.45715464]
[1641435399448,27.66479,151.21,151.16,14.01673672]
[1641435400051,27.66479,151.23,151.16,14.01673672]
[1641435400747,27.66479,151.23,151.15,14.01673672]
[1641435401848,27.66479,151.23,151.14,41.68152672]
[1641435402247,27.66479,151.23,151.14,45.68152672]
[1641435402448,27.66479,151.23,151.15,4.0]
[1641435402650,6.60938533,151.25,151.15,4.0]
[1641435402850,6.60938533,151.25,151.16,14.01673672]
[1641435403250,6.60938533,151.25,151.16,18.01673672]
[1641435403748,95.62039,151.26,151.17,27.66479]
[1641435404650,95.62039,151.26,151.16,14.01673672]
[1641435404850,6.6098222,151.24,151.16,14.01673672]
[1641435405049,6.6098222,151.24,151.17,14.01673672]
[1641435405351,95.62039,151.26,151.17,14.01673672]
[1641435405649,27.66479,151.23,151.17,14.01673672]
[1641435406149,31.07603001,151.23,151.15,1.25013296]
[1641435407251,27.66479,151.23,151.15,1.25013296]
[1641435407452,27.66479,151.23,151.15,21.70813633]
[1641435409654,3.41131067,151.22,151.15,21.70813633]
[1641435410253,3.41131067,151.22,151.15,15.26686968]
[1641435410457,3.41131067,151.22,151.17,4.0]
[1641435410655,67.9556,151.26,151.17,4.0]
[1641435411054,67.9556,151.26,151.16,4.0]
[1641435411255,37.31929506,151.28,151.17,4.0]
[1641435411457,70.64223843,151.29,151.18,14.01673672]
[1641435411655,27.66479,151.28,151.18,41.68152672]
[1641435415259,27.66479,151.28,151.19,4.0]
[1641435415561,12.201311,151.27,151.21,4.0]
[1641435415858,12.201311,151.27,151.21,27.66479]
[1641435416261,27.66479,151.28,151.18,27.66479]
[1641435416458,34.27264674,151.28,151.19,20.45835861]
[1641435417160,4.0,151.27,151.19,20.45835861]
[1641435417360,16.20124858,151.27,151.16,14.01673672]
[1641435417561,6.60894852,151.26,151.16,14.01673672]
[1641435417760,27.66479,151.22,151.16,14.01673672]
[1641435418363,27.66479,151.22,151.15,64.5745]
[1641435419163,27.66479,151.22,151.16,20.47387944]
[1641435419364,24.89831101,151.22,151.16,20.47387944]
[1641435420766,24.89831101,151.22,151.15,18.01673672]
[1641435421565,24.89831101,151.22,151.15,4.0]
[1641435421865,52.56310101,151.22,151.15,4.0]
[1641435422466,52.56310101,151.22,151.15,18.01673672]
[1641435422865,24.89831101,151.22,151.15,18.01673672]
[1641435423066,37.31929506,151.26,151.15,18.01673672]
[1641435423269,6.60960375,151.24,151.15,18.01673672]
[1641435423667,10.60960375,151.24,151.15,18.01673672]
[1641435423868,38.27439375,151.24,151.2,4.67240079]
[1641435424670,34.27439375,151.24,151.2,4.67240079]
[1641435424872,27.66479,151.24,151.2,4.67240079]
[1641435425572,12.23356792,151.23,151.19,4.67240079]
[1641435426771,64.98408506,151.26,151.19,4.67240079]
[1641435426972,64.98408506,151.26,151.21,4.67240079]
[1641435427173,27.66479,151.26,151.21,4.67240079]
[1641435427774,37.31929506,151.29,151.21,4.67240079]
[1641435427974,37.31929506,151.29,151.27,27.66479]
[1641435429174,37.31929506,151.29,151.22,4.67240079]
[1641435429374,37.31929506,151.29,151.21,67.0225]
[1641435429375,37.31929506,151.29,151.27,4.67240079]
[1641435429575,108.35709506,151.34,151.27,4.67240079]
[1641435429775,10.60654709,151.31,151.27,4.67240079]
[1641435429975,27.66479,151.28,151.27,4.67240079]
[1641435430777,27.66479,151.28,151.24,14.01673672]